Cogmind - Beta 14 @@@ ROGUE MODE // 2024.09.01 @ 14:05:44 Player: Bardic Entropy Result: Destroyed by S-10 Pest with Light Assault Rifle Performance ------------- Evolutions (0) 0 Regions Visited (2) 400 Robots Destroyed (36) 180 Value Destroyed (601) 601 Prototype IDs (2) 40 Alien Tech Used (0) 0 Bonus (24) 24 TOTAL SCORE: 1245 Bonus ------- High Alert Combat Kills 24 Cogmind --------- Core Integrity 0/250 Matter 262/300 Energy 94/100 System Corruption 7% Temperature Cool (5) Movement Rolling (110) Ox2 Location -10/Mines Parts ------- > --- POWER (1) -------- (None) > --- PROPULSION (2) --- Light Treads Wheel > --- UTILITY (2) ------ Large Storage Unit Hacking Suite > --- WEAPON (2) ------- Backup Laser III Light Assault Rifle > --- INVENTORY (15) --- Light Treads Light Treads Wheel Large Battery (200) High-capacity Matter Pod (200) Sensor Array Beam Cannon Mining Laser Hammer Peak State ------------ > --- POWER ------------ (None) > --- PROPULSION ------- Light Treads Wheel > --- UTILITY ---------- Large Storage Unit Hacking Suite > --- WEAPON ----------- Backup Laser III Light Assault Rifle > --- INVENTORY -------- Light Treads Light Treads Wheel Large Battery High-capacity Matter Pod Sensor Array Beam Cannon Light Assault Rifle Mining Laser Hammer [Rating: 11] Favorites ----------- Power Ion Engine Engine Ion Engine Propulsion Light Treads Treads Light Treads Wheel Wheel Utility Seismic Detector Device Seismic Detector Storage Medium Storage Unit Hackware Hacking Suite Weapon Assault Rifle Energy Gun Backup Laser III Energy Cannon Beam Cannon Ballistic Gun Assault Rifle Impact Weapon Hammer Build | -11 -10 -10 ------- Run | Yrd Mat Min Slots Evolved . | . . . Power . | . . . Propulsion . | . . . Utility . | . . . Weapon . | . . . Parts Attached 33 | 11 22 . Power 4 | 3 1 . Engine 4 | 3 1 . Core . | . . . Reactor . | . . . Propulsion 8 | 4 4 . Treads 3 | 1 2 . Leg . | . . . Wheel 5 | 3 2 . Hover . | . . . Flight . | . . . Utility 7 | 2 5 . Device 3 | 1 2 . Storage 3 | 1 2 . Processor . | . . . Hackware 1 | . 1 . Protection . | . . . Artifact . | . . . Weapon 14 | 2 12 . Energy Gun 3 | . 3 . Energy Cannon 4 | . 4 . Ballistic Gun 5 | 2 3 . Ballistic Cannon . | . . . Launcher . | . . . Special Weapon . | . . . Impact Weapon 2 | . 2 . Slashing Weapon . | . . . Piercing Weapon . | . . . Special Melee Weapon . | . . . Unidentified Prototypes . | . . . Parts Lost 6 | . 6 . Power 2 | . 2 . Propulsion 1 | . 1 . Utility 1 | . 1 . Weapon 2 | . 2 . Highest Loss Streak 2 | . 2 . To Critical Strikes . | . . . Average Slot Usage (%) 92 | . 92 . Engine 7 | . 7 . Treads 14 | . 14 . Wheel 13 | . 13 . Device 7 | . 7 . Storage 14 | . 14 . Hackware 6 | . 6 . Energy Gun 7 | . 7 . Energy Cannon 6 | . 6 . Ballistic Gun 14 | . 14 . Peak Build Rating 11 | 7 11 10 Average Rating 7 | 5 8 10 On Entrance 5 | . 7 10 Naked Turns . | . . . Heaviest Build 25 | 13 25 . Greatest Support 20 | 20 20 . Greatest Overweight (x) 2 | 1 2 . Average Overweight (x) 1 | . 1 . Largest Inventory Capacity 15 | 8 15 15 Average Capacity 11 | 7 12 15 Most Carried 10 | 7 10 9 Average Carried 8 | 4 8 9 Final Capacity 15 | 8 15 15 Final Carried 9 | 7 9 9 Class Distribution -------------------- 100% | Mutant Dominant Class ---------------- Mutant | -10/Materials Mutant | -10/Mines Resources | -11 -10 -10 ----------- Run | Yrd Mat Min Matter Collected 1155 | 452 703 . Remotely . | . . . Salvage Created 1002 | 190 812 . Parts 83 | 15 68 . Haulers Intercepted 2 | . 2 . Recyclers Shooed . | . . . Parts Field Recycled . | . . . Retrieved Matter . | . . . Parts Self-Destructed . | . . . Prevented . | . . . Kills | -11 -10 -10 ------- Run | Yrd Mat Min Combat Hostiles Destroyed 21 | . 21 . Guns 16 | . 16 . Cannons 4 | . 4 . Classes Destroyed 9 | 3 6 . Worker 2 | 2 . . Builder 3 | . 3 . Tunneler 4 | 4 . . Hauler 2 | . 2 . Recycler 1 | 1 . . Operator 2 | . 2 . Watcher 1 | . 1 . Swarmer 9 | . 9 . Grunt 12 | . 12 . Best Kill Streak 5 | 2 5 . Combat Bots Only 3 | . 3 . Max Kills in Single Turn 2 | 1 2 . Gunslinging 1 | . 1 . Exploded . | . . . Melee . | . . . Uniques/NPCs Destroyed . | . . . Combat | -11 -10 -10 -------- Run | Yrd Mat Min Hostile Shots Fired 94 | . 93 1 Missed 26 | . 26 . Damage Taken 1004 | . 994 10 Core 252 | . 242 10 Absorbed by Shields . | . . . Core Remaining (%) 100 | 100 . . Volleys Fired 104 | 23 80 1 Largest 2 | 2 2 2 Hottest 80 | 40 80 60 Shots Fired 207 | 46 159 2 Gun 189 | 46 141 2 Cannon 18 | . 18 . Launcher . | . . . Special . | . . . Kinetic 128 | 46 81 1 Thermal 79 | . 78 1 Explosive . | . . . Electromagnetic . | . . . Robot Hit Streak 9 | 9 9 1 Robot Miss Streak 6 | 5 6 1 Penetration Max . | . . . Secondary Targets 2 | . 2 . Max Gunslinging Chain 1 | . 1 . Shots Hit Robots 122 | 30 91 1 Core Hits 53 | 12 41 . Critical Kills 2 | . 2 . Critical Parts Destroyed 2 | 2 . . Critical Strikes 4 | 2 2 . Meltdown 1 | . 1 . Destroy 3 | 2 1 . Melee Attacks 8 | . 8 . Impact 8 | . 8 . Slashing . | . . . Piercing . | . . . Sneak Attacks . | . . . Combat Hostiles . | . . . Follow-up Attacks . | . . . Damage Inflicted 1635 | 337 1287 11 Guns 1380 | 337 1032 11 Cannons 252 | . 252 . Explosions . | . . . Melee . | . . . Ramming 3 | . 3 . Kinetic 911 | 337 563 11 Thermal 721 | . 721 . Explosive . | . . . Electromagnetic . | . . . Impact . | . . . Slashing . | . . . Piercing . | . . . Highest Corruption 7 | . 7 7 Average Corruption 7 | . 7 7 Corruption Purged . | . . . Corruption Blocked . | . . . Effects 18 | . 18 . Message Errors 4 | . 4 . Matter Fused 6 | . 6 . Heat Flow Errors 2 | . 2 . Energy Discharges 4 | . 4 . Parts Fused 1 | . 1 . Data Loss (major) 1 | . 1 . Overload Shots . | . . . Overflow Damage . | . . . Projectiles . | . . . Explosions . | . . . Melee . | . . . Knockbacks . | . . . Impact . | . . . Kinetic . | . . . Secondary . | . . . Self-Inflicted Damage 1 | . 1 . Shots . | . . . Rammed 1 | . 1 . Targets Rammed 1 | . 1 . Kicked . | . . . Crushed . | . . . Highest Temperature 230 | . 230 5 Average Temperature 40 | . 40 5 Received Heat Transfer 210 | . 210 . Effects 1 | . 1 . Interference 1 | . 1 . Siege Activations . | . . . Robots Corrupted . | . . . Combat Hostiles . | . . . Parts Fried . | . . . Impact Corruptions . | . . . Robots Melted 1 | . 1 . Combat Hostiles 1 | . 1 . Parts Melted 3 | . 3 . Heat Transferred 1887 | . 1887 . Parts Sabotaged . | . . . Parts Stolen . | . . . Parts Stripped . | . . . Power Chain Reactions . | . . . Alert | -11 -10 -10 ------- Run | Yrd Mat Min Peak Influence 456 | 35 456 81 Initial 81 | . 22 81 Average 226 | 16 262 81 Maximum Alert Level 2 | . 2 . Low Security (%) 27 | 100 14 100 Level 1 70 | . 82 . Level 2 2 | . 2 . Level 3 . | . . . Level 4 . | . . . Level 5 . | . . . High Security . | . . . Max Security . | . . . Squads Dispatched 6 | . 6 . Investigation 3 | . 3 . Extermination . | . . . Reinforcement 3 | . 3 . Assault . | . . . Garrison . | . . . Intercept . | . . . Searches Triggered . | . . . Construction Impeded . | . . . Haulers Reinforced . | . . . Active Scanning Responses . | . . . Cargo Convoy Interrupts . | . . . Stealth | -11 -10 -10 --------- Run | Yrd Mat Min Distress Signals 3 | . 3 . Communications Jammed . | . . . Distress Signals . | . . . Times Spotted 36 | . 33 3 Peak Tracking Total 5 | . 5 3 Tactical Retreats 1 | . 1 . Traps | -11 -10 -10 ------- Run | Yrd Mat Min Traps Triggered 3 | . 3 . Indirectly . | . . . Trap Hack Attempts . | . . . Triggered . | . . . Disarmed . | . . . Reprogrammed . | . . . Reused . | . . . Traps Extracted . | . . . Installed . | . . . Triggered . | . . . Machines | -11 -10 -10 ---------- Run | Yrd Mat Min Machines Disabled . | . . . Max in Single Turn . | . . . Machines Repaired . | . . . Machines Dismantled . | . . . Machines Sabotaged . | . . . Overloaded Fab Kills . | . . . Hacking | -11 -10 -10 --------- Run | Yrd Mat Min Machines Accessed 5 | . 5 . Terminals 4 | . 4 . Fabricators . | . . . Repair Stations . | . . . Recycling Units 1 | . 1 . Scanalyzers . | . . . Garrison Access . | . . . Total Hacks 16 | . 16 . Successful 6 | . 6 . Failed 9 | . 9 . Catastrophic . | . . . Database Lockouts 1 | . 1 . Manual 12 | . 12 . Terminals 14 | . 14 . Fabricators . | . . . Repair Stations . | . . . Recycling Units 2 | . 2 . Scanalyzers . | . . . Garrison Access . | . . . Terminal Hacks 4 | . 4 . Robot Analysis 2 | . 2 . Prototype ID Bank 1 | . 1 . Hauler Manifests 1 | . 1 . Fabricator Hacks . | . . . Repair Station Hacks . | . . . Recycling Unit Hacks 1 | . 1 . Report Inventory 1 | . 1 . Scanalyzer . | . . . Garrison Access Hacks . | . . . Unauthorized Hacks 1 | . 1 . Terminals . | . . . Fabricators . | . . . Repair Stations . | . . . Recycling Units 1 | . 1 . Tunnel 1 | . 1 . Scanalyzers . | . . . Garrison Access . | . . . Data Cores Recovered . | . . . Used . | . . . Hacking Detections 3 | . 3 . Full Trace Events . | . . . Feedback Events . | . . . Feedback Blocked . | . . . Robot Schematics Acquired . | . . . Robots Built . | . . . Authchips . | . . . Time . | . . . Total Robot Build Rating . | . . . Part Schematics Acquired . | . . . Parts Built . | . . . Authchips . | . . . Time . | . . . Total Part Build Rating . | . . . Parts Repaired . | . . . Time . | . . . Parts Recycled . | . . . Recycled Matter . | . . . Retrieved Matter . | . . . Retrieved Components . | . . . Parts Scanalyzed . | . . . Part Schematics Acquired . | . . . Parts Damaged . | . . . Bothacking | -11 -10 -10 ------------ Run | Yrd Mat Min Used RIF Installer . | . . . Robots Hacked . | . . . Non-combat . | . . . Combat . | . . . Robot Hacks Applied . | . . . Relay Couplers Released . | . . . Fabnet Peak Effective % . | . . . Robots Rewired . | . . . Allies Hacked . | . . . Hacks Repelled . | . . . Allies | -11 -10 -10 -------- Run | Yrd Mat Min Total Allies . | . . . Largest Group . | . . . Highest-Rated Group . | . . . Highest-Rated Ally . | . . . Total Orders . | . . . Ally Attacks . | . . . Total Damage . | . . . Kills . | . . . Allies Corrupted . | . . . Allies Melted . | . . . Intel | -11 -10 -10 ------- Run | Yrd Mat Min Robot Analysis Total 2 | . 2 . Derelict Logs Recovered . | . . . Drone Launches . | . . . Drone Recoveries . | . . . Exploration | -11 -10 -10 ------------- Run | Yrd Mat Min Turns Passed 1468 | 218 1249 1 Spaces Moved 785 | 105 680 . Core 2 | 2 . . Treads 165 | 40 125 . Legs . | . . . Wheels 618 | 63 555 . Hover . | . . . Flight . | . . . Fastest Speed 50 | 50 95 . Average Speed 125 | 119 127 . Slowest Speed 240 | 160 240 . Overloaded Moves . | . . . Propulsion Burnouts . | . . . Robots Hopped . | . . . Cave-ins Triggered 1 | . 1 . Exploration Rate (%) 31 | 6 86 3 Regions Visited 2 Branch Regions 1 Pre-discovered Areas 1 | . 1 . Known Exits Taken . | . . . Unknown Exits Taken 2 | 1 1 . Scrap Searched . | . . . Spaces Dug 2 | . 2 . Terrain Destroyed 2 | . 2 . Melee 2 | . 2 . Projectile . | . . . AOE . | . . . Terrain Rammed . | . . . Walls Destroyed . | . . . Machines Disabled . | . . . Actions | -11 -10 -10 --------- Run | Yrd Mat Min Total 1046 | 152 893 1 Wait 83 | 4 79 . Move 783 | 104 679 . Hop . | . . . Pick Up 19 | 7 12 . Fast Attach 8 | 7 1 . Attach 4 | . 4 . Detach . | . . . Swap 21 | 4 17 . Drop 15 | 3 12 . Fire 104 | 23 80 1 Melee 8 | . 8 . Ram 1 | . 1 . Kick . | . . . Crush . | . . . Escape Stasis . | . . . Rewire . | . . . Trap . | . . . Miscellaneous . | . . . Route ------- -11/Scrapyard -10/Materials (discovered 4 exits: [*Mat x2] / [*Min x2]) -10/Mines History --------- Turn | Location | Event 2 | -11/Scrapyard | Met Revision 17 23 | -11/Scrapyard | Discovered new exit (range 15) 219 | -11/Scrapyard | Entered Materials 310 | -10/Materials | Build established: Mutant 776 | -10/Materials | Discovered new exit (range 5) 896 | -10/Materials | Crushed by falling debris 896 | -10/Materials | Core integrity fell below 50% 896 | -10/Materials | Core integrity fell below 20% 910 | -10/Materials | Discovered new exit (range 3) 1094 | -10/Materials | Discovered new exit (range 15) 1274 | -10/Materials | Central database locked down 1323 | -10/Materials | Discovered new exit (range 14) 1468 | -10/Materials | Entered Mines 1469 | -10/Mines | Destroyed by S-10 Pest with Light Assault Rifle Last Messages --------------- 01353_ System corrupted: Energy discharge (-26). 01356_ T-07 Excavator is excavating. 01378_ Heat Sink melted. 01378_ G-34 Mercenary destroyed. 01380_ K-01 Serf collects debris. 01389_ System corrupted: Matter fused (-5). 01397_ T-07 Excavator is excavating. 01406_ AY UTH=#BS|XA:EG&QXHW %6 PR/6YU TN 01406_ T-07 Excavator is excavating. 01425_ System corrupted: Matter fused (-8). 01425_ U-05 Engineer lays Concrete. 01435_ Discarded Lgt. Assault Rifle. 01435_ U-05 Engineer lays Concrete. 01454_ U-05 Engineer builds a Wall. 01457_ T-07 Excavator is excavating. 01458_ U-05 Engineer lays Concrete. 01460_ U-05 Engineer builds a Wall. 01465_ ZMY#,CJOHQC69L6: YFP1BX/YYWGQ7G3YR7L LOCATION=UNKNOWN GOAL=ESCAPE Map ----- +----------------------------------------------------+ | ???????????????????????????????????? | | ???????????????????????????????????? | | ???????????????????????????????????? | | ???????????????????????????????????? | | ???????????????????????????????????? | | ???????????????????????????????????? | | ???????????????????????????????????? | | ???????????????????????????????????? | | ???????????????????????????????????? | | ???????????????????????????????????? | | ???????????????????????????????????? | | ???????????????????????????????????? | | ???????????????????????????????????? | | ???????????????????????????????????? | | ???????????????????????????????????? | | ???????????????????????????????????? | | ???????????##??????????????????????? | | ??????????# ??????????????????????? | | ??????????# ??????????????????????? | | ??????????# #??????????????????????? | | ??????????# #??????????????????????? | | ??????????# #??????????????????????? | | ??????????# #??????????????????????? | | ???????#### ####???????????????????? | | ???????# #???????????????????? | | ???????# @ #???????????????????? | | ???????# #???????????????????? | | ???????#s #???????????????????? | | ???????# s s #???????????????????? | | ???????##### ###???????????????????? | | ???????????? #?????????????????????? | | ???????????? #?????????????????????? | | ???????????? #?????????????????????? | | ???????????? ?????????????????????? | | ???????????? ?????????????????????? | | ????????????##?????????????????????? | | ???????????????????????????????????? | | ???????????????????????????????????? | | ???????????????????????????????????? | | ???????????????????????????????????? | | ???????????????????????????????????? | | ???????????????????????????????????? | | ???????????????????????????????????? | | ???????????????????????????????????? | | ???????????????????????????????????? | | ???????????????????????????????????? | | ???????????????????????????????????? | | ???????????????????????????????????? | | ???????????????????????????????????? | | ???????????????????????????????????? | +----------------------------------------------------+ Best States ------------- Heat Dissipation 25 Energy Generation 10 Energy Capacity 250 Matter Stores 300 Matter Capacity 300 Sight Range 16 Robot Scan Range 14 Terrain Scan Density 10 Evasion (%) 41 Recoil Reduction 1 Offensive Hacking 10 Item Schematics ----------------- None Robot Schematics ------------------ None Fabricated ------------ Nothing Alien Tech Used ----------------- None Achievements -------------- None Challenges ------------ None Game ------ Seed TripodLatentJammer Manual? 0 Play Time 00:26:45 Cumulative 34.4 hours Start 2024.09.01 @ 13:37:09 End 2024.09.01 @ 14:05:44 Sessions 2 Manual Loads 0 Difficulty Rogue Special Mode None Game No. 32 Rogue 32 Adventurer 0 Explorer 0 Win Type - Total 0 Types 0/0/0/0/0/0/0/0/0 Lore% 11 Gallery% 19 Achievement% 19 Wizard Run 0 Options --------- Layout 0 ASCII 0 Keyboard 0 Movement Mouse Keybinds 0 Fullscreen 1 Font 16/TerminusTall Map View 75x55 Zoom Use 0% Tactical HUD 1 Map Filters NONE Filters NONE Steam 1 RUN: 43984e87-88b2-4ca3-9722-17cf48f55ba2